fUST/lending_fUST_20251008
["ID","MTS","AMOUNT","RATE_DAILY","PERIOD"]
[389943102,1759900247520,-500.0,0.00021917,2]
[389943103,1759900247529,-500.0,0.00021917,2]
[389943104,1759900247539,-500.0,0.00021917,2]
[389943105,1759900247549,-500.0,0.00021917,2]
[389943106,1759900247560,-500.0,0.00021917,2]
[389943107,1759900247572,-500.0,0.00021917,2]
[389943108,1759900247581,-500.0,0.00021917,2]
[389943109,1759900247591,-500.0,0.00021917,2]
[389943110,1759900247603,-500.0,0.00021917,2]
[389943111,1759900247613,-152.265948,0.00021917,7]
[389943112,1759900247622,-428.01592468,0.00021917,2]
[389943113,1759900247632,-500.0,0.00021917,2]
[389943114,1759900247642,-153.40546928,0.00021917,2]
[389943115,1759900247652,-500.0,0.00021917,2]
[389943116,1759900247662,-500.0,0.00021917,2]
[389943117,1759900247672,-500.0,0.00021917,2]
[389943118,1759900247682,-500.0,0.00021917,2]
[389943119,1759900247691,-151.0,0.00021917,7]
[389943120,1759900247701,-500.0,0.00021917,2]
[389943121,1759900247711,-500.0,0.00021917,2]
[389943122,1759900247722,-151.0,0.00021917,7]
[389943123,1759900247731,-500.0,0.00021917,2]
[389943124,1759900247741,-500.0,0.00021917,2]
[389943125,1759900247751,-179.816372,0.00021917,7]
[389943126,1759900247761,-500.0,0.00021917,2]
[389943127,1759900247771,-135.51521404,0.00021917,2]
[389943128,1759900248576,-364.48478596,0.00021917,2]
[389943129,1759900248586,-500.0,0.00021917,2]
[389943130,1759900248595,-151.0,0.00021917,2]
[389943131,1759900248609,-500.0,0.00021917,2]
[389943132,1759900248618,-330.14419818,0.00021917,2]
[389943133,1759900248627,-500.0,0.00021917,2]
[389943134,1759900248639,-500.0,0.00021917,2]
[389943135,1759900248650,-500.0,0.00021917,2]
[389943136,1759900248660,-481.51473656,0.00021917,2]
[389943137,1759900248670,-500.0,0.00021917,2]
[389943138,1759900248682,-199.73426679,0.00021917,2]
[389943139,1759900248691,-500.0,0.00021917,2]
[389943140,1759900248701,-500.0,0.00021917,2]
[389943141,1759900248711,-500.0,0.00021917,2]
[389943142,1759900248721,-500.0,0.00021917,2]
[389943143,1759900248731,-151.0,0.00021917,7]
[389943144,1759900248741,-531.46274305,0.00021917,2]
[389943145,1759900248751,-152.13638,0.00021917,7]
[389943146,1759900248761,-500.0,0.00021917,2]
[389943147,1759900248770,-500.0,0.00021917,2]
[389943148,1759900248780,-500.0,0.00021917,2]
[389943149,1759900248790,-500.0,0.00021917,2]
[389943150,1759900248800,-500.0,0.00021917,2]
[389943151,1759900248810,-1500.56,0.00021917,2]
[389943152,1759900248819,-500.0,0.00021917,2]
[389943153,1759900248829,-1500.56,0.00021917,2]
[389943154,1759900248839,-500.0,0.00021917,2]
[389943155,1759900248849,-1500.56,0.00021917,2]
[389943156,1759900248859,-500.0,0.00021917,2]
[389943157,1759900248869,-1500.56,0.00021917,2]
[389943158,1759900248879,-1500.56,0.00021917,2]
[389943159,1759900248888,-500.0,0.00021917,2]
[389943160,1759900248898,-500.0,0.00021917,2]
[389943161,1759900248908,-1500.56,0.00021917,2]
[389943162,1759900248918,-500.0,0.00021917,2]
[389943163,1759900248929,-1500.56,0.00021917,2]
[389943164,1759900248939,-1500.56,0.00021917,2]
[389943165,1759900248948,-500.0,0.00021917,2]
[389943166,1759900248958,-1500.56,0.00021917,2]
[389943167,1759900248969,-500.0,0.00021917,2]
[389943168,1759900248979,-1500.56,0.00021917,2]
[389943169,1759900248989,-500.0,0.00021917,2]
[389943170,1759900248999,-500.0,0.00021917,2]
[389943171,1759900249010,-1500.56,0.00021917,2]
[389943172,1759900249020,-500.0,0.00021917,2]
[389943173,1759900249030,-208.18646513,0.00021917,2]
[389943174,1759900249041,-1500.56,0.00021917,2]
[389943175,1759900249268,-500.0,0.00021917,2]
[389943176,1759900249279,-500.0,0.00021917,2]
[389943177,1759900249289,-1500.56,0.00021917,2]
[389943178,1759900249299,-500.0,0.00021917,2]
[389943179,1759900249308,-1500.56,0.00021917,2]
[389943180,1759900249318,-500.0,0.00021917,2]
[389943181,1759900249327,-1500.56,0.00021917,2]
[389943182,1759900249337,-500.0,0.00021917,2]
[389943183,1759900249347,-1500.56,0.00021917,2]
[389943184,1759900249356,-500.0,0.00021917,2]
[389943185,1759900249366,-1500.56,0.00021917,2]
[389943186,1759900249376,-500.0,0.00021917,2]
[389943187,1759900249386,-1500.56,0.00021917,2]
[389943188,1759900249395,-211.3985189,0.00021917,2]
[389943189,1759900249405,-1500.56,0.00021917,2]
[389943190,1759900249415,-1500.56,0.00021917,2]
[389943191,1759900249424,-1500.56,0.00021917,2]
[389943192,1759900249433,-1500.56,0.00021917,2]
[389943193,1759900249442,-1500.56,0.00021917,2]
[389943194,1759900249452,-1500.76895452,0.00021917,2]
[389943195,1759900249463,-500.36111261,0.00021917,2]
[389943196,1759900249472,-1070.64,0.00021917,2]
[389943197,1759900249482,-1070.64,0.00021917,2]
[389943198,1759900249492,-1070.64,0.00021917,2]
[389943199,1759900249501,-444.7078383,0.00021917,2]
[389943200,1759900250075,-543.95,0.00021907,3]
[389943201,1759900250085,-360.48670597,0.00021917,2]
[389943202,1759900250096,-265.44545573,0.00021917,2]
[389943203,1759900250105,-16.95454427,0.00021917,2]
[389943205,1759900438451,4076.15845301,0.0002,2]
[389943208,1759900783508,180.0,0.0002,2]
[389943213,1759900831485,1000.0,0.00028767,120]
[389943214,1759900837063,1000.0,0.00028767,120]
[389943216,1759900842338,1000.0,0.00028767,120]
[389943217,1759900851725,1000.0,0.00028767,120]
[389943218,1759900861988,1000.0,0.00028767,120]
[389943219,1759900863486,169.0,0.000199,2]
[389943220,1759900868039,1000.0,0.00028767,120]
[389943221,1759900869825,169.0,0.000199,2]
[389943222,1759900876411,169.0,0.000199,2]
[389943223,1759900896527,233.0,0.00028767,120]
[389943224,1759900900300,170.0,0.000287,120]
[389943225,1759900904130,900.0,0.00028767,120]
[389943226,1759900911521,170.22066135,0.000287,120]
[389943227,1759900932828,1000.0,0.00028767,120]
[389943229,1759901253135,-150.0,0.00020274,2]
[389943230,1759901253155,-306.40792651,0.00020368,2]
[389943232,1759901321083,524.88523048,0.0001,2]
[389943599,1759901438347,-781.04,0.0002,2]
[389943600,1759901438359,-849.2045593,0.0002,2]
[389943601,1759901438369,-25.34027041,0.0002,2]
[389943958,1759901443355,-124.65972959,0.0002,2]
[389943960,1759901443365,-234.25206901,0.00020527,2]
[389943962,1759901443374,-129.23358713,0.00020527,2]
[389943965,1759901443386,-272.85026077,0.00020527,2]
[389943966,1759901443394,-172.5,0.000206,2]
[389943968,1759901443403,-378.40038672,0.00020821,5]
[389943971,1759901443419,-621.59961328,0.00020821,5]
[389943973,1759901443428,-300.0,0.00020899,2]
[389943975,1759901443438,-984.0,0.00020899,2]
[389943977,1759901443447,-1203.8763462,0.000209,2]
[389943979,1759901443456,-302.6424481,0.000209,2]
[389943981,1759901443466,-408.9959874,0.000209,2]
[389943983,1759901443475,-9450.80081125,0.000209,2]
[389943985,1759901443484,-666.0,0.00020911,2]
[389943987,1759901443493,-500.0,0.00020964,2]
[389943989,1759901443502,-500.0,0.00020964,2]
[389943991,1759901443514,-207.78088565,0.00020964,2]
[389943993,1759901443524,-500.0,0.00020964,2]
[389943995,1759901443534,-500.0,0.00020964,2]
[389943997,1759901443543,-500.0,0.00020964,2]
[389943999,1759901443552,-285.09655398,0.00020964,2]
[389944001,1759901443561,-500.0,0.00020964,2]
[389944003,1759901443570,-500.0,0.00020964,2]
[389944005,1759901443579,-500.0,0.00020964,2]
[389944007,1759901443589,-500.0,0.00020964,2]
[389944009,1759901443598,-331.10984713,0.00020964,2]
[389944011,1759901443607,-351.07954162,0.00020964,2]
[389944013,1759901443617,-500.0,0.00020964,2]
[389944015,1759901443626,-500.0,0.00020964,2]
[389944017,1759901443635,-500.0,0.00020964,2]
[389944019,1759901443644,-500.0,0.00020964,2]
[389944021,1759901443654,-500.0,0.00020964,2]
[389944023,1759901443663,-500.0,0.00020964,2]
[389944025,1759901443672,-193.12232533,0.00020964,2]
[389944027,1759901443681,-500.0,0.00020964,2]
[389944029,1759901443691,-281.10249671,0.00020964,2]
[389948153,1759901565605,2002.86563496,0.00028767,120]
[389948154,1759902048763,160.921377,0.00019886,2]
[389948155,1759902159775,1359.43481571,0.00019179,2]
[389948156,1759902159838,1359.43481571,0.00019559,2]
[389948157,1759902160178,1359.43481571,0.00019822,2]
[389948159,1759902211095,472.74049238,0.00013699,2]
[389948160,1759902211116,3.67625062,0.00013699,2]
[389948161,1759902431140,-476.416743,0.00020187,2]
[389948162,1759902431161,-19.22404965,0.00020291,2]
[389948213,1759902632470,-150.0,0.00020291,2]
[389948214,1759902632479,-107.20208345,0.000205,2]
[389948234,1759902638412,-73.23751853,0.000205,2]
[389948235,1759902638421,-160.0,0.00020529,2]
[389948236,1759902638432,-160.0,0.00020529,2]
[389948237,1759902638448,-356.76248147,0.00020631,2]
[389948238,1759902638471,-1002.67233424,0.00020631,2]
[389948239,1759902638481,-180.43960198,0.000207,2]
[389948240,1759902638490,-594.9695326,0.000207,2]
[389948241,1759902638498,-162.7762228,0.000207,2]
[389948242,1759902638507,-855.51778374,0.00020821,2]
[389948243,1759902638516,-172.5,0.00020891,2]
[389948244,1759902638526,-180.43960198,0.000209,2]
[389948245,1759902638537,-154.25914846,0.00020905,2]
[389948246,1759902638546,-402.0838479,0.00020957,2]
[389948247,1759902638555,-234.25206901,0.00020958,2]
[389948248,1759902638564,-209.67319762,0.0002099,2]
[389948305,1759902640759,-16675.2921753,0.0002099,2]
[389948308,1759902640768,-189.5044535,0.00021,2]
[389948309,1759902640777,-297.7083239,0.00021,2]
[389948311,1759902640786,-162.7762228,0.00021,2]
[389948313,1759902640796,-162.7762228,0.00021,2]
[389948315,1759902640804,-297.7083239,0.00021,2]
[389948318,1759902640814,-297.7083239,0.00021,2]
[389948320,1759902640823,-162.7762228,0.00021,2]
[389948323,1759902640832,-309.5669343,0.00021004,2]
[389948324,1759902640840,-188.12470282,0.00021004,2]
[389948327,1759902640850,-500.0,0.00021004,2]
[389948328,1759902640859,-500.0,0.00021004,2]
[389948331,1759902640868,-500.0,0.00021004,2]
[389948333,1759902640877,-521.29019834,0.00021004,2]
[389948335,1759902640886,-500.0,0.00021004,2]
[389948338,1759902640895,-500.0,0.00021004,2]
[389948340,1759902640904,-500.0,0.00021004,2]
[389948342,1759902640913,-500.0,0.00021004,2]
[389948344,1759902640922,-500.0,0.00021004,2]
[389948346,1759902640931,-500.0,0.00021004,2]
[389948348,1759902640940,-500.0,0.00021004,2]
[389948349,1759902640948,-500.0,0.00021004,2]
[389948351,1759902640957,-500.0,0.00021004,2]
[389948353,1759902640966,-235.10795416,0.00021004,2]
[389948355,1759902640975,-633.33148463,0.00021004,2]
[389948357,1759902640984,-1000.0,0.00021005,2]
[389948359,1759902640993,-1000.0,0.00021005,2]
[389948361,1759902641002,-500.0,0.00021005,2]
[389948363,1759902641011,-1000.0,0.00021005,2]
[389948366,1759902641021,-500.0,0.00021005,2]
[389948367,1759902641030,-1000.0,0.00021005,2]
[389948369,1759902641039,-151.0,0.00021005,2]
[389948371,1759902641048,-500.0,0.00021005,2]
[389948373,1759902641057,-1000.0,0.00021005,2]
[389948375,1759902641066,-500.0,0.00021005,2]
[389948377,1759902641075,-836.83052362,0.00021005,2]
[389948379,1759902641084,-268.84257489,0.00021005,2]
[389948381,1759902641094,-1000.0,0.00021005,2]
[389948383,1759902641102,-1000.0,0.00021005,2]
[389948385,1759902641111,-500.0,0.00021005,2]
[389948387,1759902641120,-6940.74017881,0.00021005,2]
[389948662,1759902643573,-9764.15051469,0.00021005,2]
[389948937,1759902807253,-1359.43481572,0.00020584,2]
[389948938,1759902807281,-160.0,0.00020584,2]
[389948939,1759902807308,-970.11819648,0.00020821,2]
[389948940,1759902807337,-1144.31166246,0.00020821,2]
[389948941,1759902807634,-2732.28065068,0.00020821,2]
[389948942,1759902807661,-1898.9930065,0.00021005,2]
[389948943,1759902807689,-237.46268564,0.00021005,2]
[389948944,1759902808959,-262.53731436,0.00021005,2]
[389948945,1759902808987,-1000.0,0.00021005,2]
[389948946,1759902809016,-500.0,0.00021005,2]
[389948947,1759902809043,-517.47399308,0.00021005,2]
[389948948,1759902809070,-500.0,0.00021005,2]
[389948949,1759902809097,-500.0,0.00021005,2]
[389948950,1759902809126,-500.0,0.00021005,2]
[389948951,1759902809152,-253.11482287,0.00021005,2]
[389948952,1759902809180,-500.0,0.00021005,2]
[389948953,1759902809208,-433.75773938,0.00021005,2]
[389948954,1759902809329,-66.24226062,0.00021005,2]
[389948955,1759902809356,-500.0,0.00021005,2]
[389948956,1759902809383,-500.0,0.00021005,2]
[389948957,1759902809410,-500.0,0.00021005,2]
[389948958,1759902809439,-500.0,0.00021005,2]
[389948959,1759902809466,-500.0,0.00021005,2]
[389948960,1759902809493,-500.0,0.00021005,2]
[389948961,1759902809522,-359.45643935,0.00021017,2]
[389948962,1759902809551,-348.14794274,0.00021017,2]
[389948963,1759902809579,-849.3305654,0.00021018,2]
[389948964,1759902810928,-1664.5127371,0.00021018,2]
[389948965,1759902811071,-525.19016152,0.00021018,2]
[389948966,1759902812963,-10000.01,0.00021018,2]
[389948967,1759902813074,-10000.01,0.00021018,2]
[389948968,1759902816951,-10000.01,0.00021018,2]
[389948969,1759902820978,-3331.82514732,0.00021018,2]
[389948970,1759902821001,-3336.35970536,0.00021018,2]
[389948971,1759902935747,-496.24129189,0.00020913,6]
[389948972,1759902935776,-402.0838479,0.00021018,2]
[389948973,1759902935807,-189.5044535,0.000211,2]
[389948974,1759902935839,-1385.13689954,0.00021111,2]
[389948975,1759902935868,-234.25206901,0.00021125,2]
[389948976,1759902935899,-160.0,0.00021125,2]
[389948977,1759902935931,-366.6240207,0.0002137,2]
[389948978,1759902935961,-160.0,0.00021373,3]
[389948979,1759902935991,-635.5,0.00021385,15]
[389948980,1759902962952,300.0,0.00021399,2]
[389948981,1759903000903,666.0,0.00020706,2]
[389948982,1759903044919,975.32483492,0.00021399,2]
[389948983,1759903044944,224.67516508,0.00021399,2]
[389948984,1759903050562,605.27375019,0.00021271,6]
[389948985,1759903118748,168.0,0.0002091,2]
[389948986,1759903124346,168.0,0.00021391,2]
[389948987,1759903128553,-402.0838479,0.000214,2]
[389948988,1759903128583,-500.0,0.000214,2]
[389948989,1759903128612,-500.0,0.000214,2]
[389948990,1759903128644,-500.0,0.000214,2]
[389948991,1759903128673,-500.0,0.000214,2]
[389948992,1759903128702,-500.0,0.000214,2]
[389948993,1759903128733,-500.0,0.000214,2]
[389948994,1759903129024,-88.56855401,0.000214,2]
[389948995,1759903130514,-10000.01,0.000214,2]
[389948996,1759903132711,-1789.41331785,0.000214,2]
[389948997,1759903132743,-500.0,0.000214,2]
[389948998,1759903132773,-500.0,0.000214,2]
[389948999,1759903132806,-500.0,0.000214,2]
[389949000,1759903132840,-500.0,0.000214,2]
[389949001,1759903132872,-500.0,0.000214,2]
[389949002,1759903132903,-500.0,0.000214,2]
[389949003,1759903133319,-421.1833643,0.000214,2]
[389949004,1759903136558,-78.8166357,0.000214,2]
[389949005,1759903136589,-500.0,0.000214,2]
[389949006,1759903136619,-500.0,0.000214,2]
[389949007,1759903136647,-500.0,0.000214,2]
[389949008,1759903136676,-500.0,0.000214,2]
[389949009,1759903136705,-500.0,0.000214,2]
[389949010,1759903136735,-300.0,0.00021412,2]
[389949011,1759903136764,-1200.0,0.00021412,2]
[389949012,1759903136914,-1842.3767286,0.00021413,2]
[389949013,1759903138569,-167.8514756,0.00021186,14]
[389949014,1759903138603,-9664.3070488,0.00021413,2]
[389949018,1759903350305,295.57245813,0.00025,120]
[389949019,1759903647115,-270.90652469,0.00020609,2]
[389949020,1759903647135,-228.65755457,0.0002061,2]
[389949021,1759903721359,7500.0,0.0002612,55]
[389949022,1759903740865,7500.0,0.0002612,55]
[389949049,1759903832682,-703.07437848,0.0001978,2]
[389949051,1759903832691,-666.74147208,0.0001978,2]
[389949057,1759903832745,-1017.88493254,0.0001978,2]
[389949122,1759903838948,-1124.85881179,0.0001978,2]
[389949123,1759903838958,-150.0,0.0001978,2]
[389949124,1759903838967,-1163.35373305,0.0002036,2]
[389949125,1759903839008,-215.31104765,0.0002036,2]
[389949126,1759903839018,-172.5,0.0002038,2]
[389949127,1759903839027,-501.44609242,0.000204,2]
[389949128,1759903839036,-771.34244543,0.0002061,2]
[389949129,1759903839046,-250.75201738,0.00020821,2]
[389949130,1759903839055,-1003.00806954,0.00020821,2]
[389949131,1759903839064,-2256.76815646,0.00020821,2]
[389949132,1759903839074,-4012.03227816,0.00020821,2]
[389949133,1759903839084,-6268.80043462,0.00020821,2]
[389949134,1759903839093,-9018.04555322,0.00020821,2]
[389949135,1759903839102,-168.0,0.00020863,2]
[389949136,1759903839111,-168.0,0.00020879,2]
[389949137,1759903839119,-195.0,0.0002098,2]
[389949138,1759903839128,-168.0,0.00021066,2]
[389949139,1759903839137,-168.0,0.00021073,2]
[389949140,1759903839147,-169.0,0.00021083,2]
[389949141,1759903839156,-154.25914844,0.00021164,2]
[389949142,1759903839166,-11402.8877433,0.00021189,2]
[389949143,1759903839175,-3171.1435345,0.0002119,2]
[389949144,1759903839185,-168.0,0.00021263,2]
[389949145,1759903839195,-168.0,0.00021267,2]
[389949146,1759903839204,-154.25914844,0.00021295,2]
[389949147,1759903839214,-160.0,0.00021405,2]
[389949148,1759903839223,-168.0,0.00021417,2]
[389949149,1759903839233,-154.25914844,0.00021425,2]
[389949150,1759903839243,-168.0,0.00021482,2]
[389949151,1759903839252,-154.25914844,0.00021556,2]
[389949152,1759903839262,-217.5,0.0002158,2]
[389949153,1759903839271,-332.0,0.00021633,2]
[389949154,1759903839280,-500.0,0.00021643,4]
[389949155,1759903839290,-332.0,0.00021679,2]
[389949156,1759903839299,-154.25914844,0.00021686,2]
[389949157,1759903839308,-500.0,0.00021704,2]
[389949158,1759903839318,-500.0,0.00021704,2]
[389949159,1759903839329,-500.0,0.00021704,2]
[389949160,1759903839338,-500.0,0.00021704,2]
[389949161,1759903839347,-500.0,0.00021704,2]
[389949162,1759903839356,-500.0,0.00021704,2]
[389949163,1759903839365,-500.0,0.00021704,2]
[389949164,1759903839374,-500.0,0.00021704,2]
[389949165,1759903839383,-500.0,0.00021704,2]
[389949166,1759903839392,-500.0,0.00021704,2]
[389949167,1759903839401,-500.0,0.00021704,2]
[389949168,1759903839410,-500.0,0.00021704,2]
[389949169,1759903839423,-500.0,0.00021704,2]
[389949170,1759903839432,-500.0,0.00021704,2]
[389949171,1759903839441,-264.1478051,0.00021704,2]
[389949172,1759903839450,-254.96,0.00021707,10]
[389949173,1759903839461,-398.07,0.00021707,10]
[389949174,1759903839469,-57988.74433788,0.00021717,2]
[389949175,1759903839478,-1062.778878,0.0002172,5]
[389949176,1759903839487,-1000.0,0.0002174,5]
[389949177,1759903839498,-1000.0,0.0002176,5]
[389949178,1759903839507,-860.53582308,0.0002176,2]
[389949179,1759903839516,-860.53582307,0.00021774,2]
[389949180,1759903839526,-1000.0,0.0002178,5]
[389949181,1759903839534,-169.0,0.00021799,2]
[389949182,1759903839543,-1000.0,0.000218,5]
[389949183,1759903839552,-150.0,0.00021812,2]
[389949184,1759903839561,-150.083,0.00021812,2]
[389949185,1759903839571,-212.814,0.00021812,2]
[389949186,1759903839580,-295.0,0.00021816,2]
[389949187,1759903839589,-465.85535867,0.00021816,2]
[389949188,1759903839599,-241.37333043,0.00021816,2]
[389949189,1759903839607,-3679.48773871,0.00021817,2]
[389949190,1759903839616,-28723.40779043,0.00021817,3]
[389949191,1759903839626,-4312.33845939,0.00021817,2]
[389949192,1759903839634,-154.25914844,0.00021817,2]
[389949193,1759903839643,-151.0,0.00021817,7]
[389949194,1759903839652,-151.0,0.00021817,7]
[389949195,1759903839661,-151.0,0.00021817,7]
[389949196,1759903839670,-352.734217,0.00021817,7]
[389949197,1759903839679,-151.0,0.00021817,7]
[389949198,1759903839687,-151.56807289,0.00021817,2]
[389949199,1759903839696,-352.734217,0.00021817,7]
[389949200,1759903839706,-352.734217,0.00021817,7]
[389949201,1759903839716,-151.0,0.00021817,7]
[389949202,1759903839725,-352.734217,0.00021817,7]
[389949203,1759903839735,-151.0,0.00021817,7]
[389949204,1759903839743,-151.0,0.00021817,7]
[389949205,1759903839752,-151.0,0.00021817,7]
[389949206,1759903839761,-151.0,0.00021817,7]
[389949207,1759903839770,-225.685094,0.00021817,7]
[389949208,1759903839779,-225.685094,0.00021817,7]
[389949209,1759903839787,-225.685094,0.00021817,7]
[389949210,1759903839796,-225.685094,0.00021817,7]
[389949211,1759903839805,-323.539593,0.00021817,7]
[389949212,1759903839814,-323.539593,0.00021817,7]
[389949213,1759903839824,-323.539593,0.00021817,7]
[389949214,1759903839833,-323.539593,0.00021817,7]
[389949215,1759903839842,-151.443601,0.00021817,7]
[389949216,1759903839851,-151.0,0.00021817,7]
[389949217,1759903839860,-549.422277,0.00021817,7]
[389949218,1759903839868,-305.009067,0.00021817,7]
[389949219,1759903839877,-549.422277,0.00021817,7]
[389949220,1759903839886,-305.009067,0.00021817,7]
[389949221,1759903839895,-549.422277,0.00021817,7]
[389949222,1759903839903,-305.009067,0.00021817,7]
[389949223,1759903839912,-549.422277,0.00021817,7]
[389949224,1759903839921,-305.009067,0.00021817,7]
[389949225,1759903839930,-151.0,0.00021817,7]
[389949226,1759903839939,-151.0,0.00021817,7]
[389949227,1759903839948,-8915.698871,0.00021817,7]
[389949228,1759903839957,-1000.0,0.0002182,5]
[389949229,1759903839966,-679.96,0.0002183,3]
[389949230,1759903839975,-180.963,0.00021836,2]
[389949231,1759903839984,-1000.0,0.0002184,5]
[389949232,1759903839993,-226.65,0.0002184,3]
[389949233,1759903840003,-500.0,0.00021842,2]
[389949234,1759903840012,-168.0,0.00021846,2]
[389949235,1759903840021,-453.29,0.0002185,3]
[389949236,1759903840030,-980.0,0.00021857,2]
[389949237,1759903840039,-2158.0,0.00021857,2]
[389949238,1759903840048,-630.0,0.00021857,2]
[389949239,1759903840058,-1000.0,0.0002186,5]
[389949240,1759903840066,-1000.0,0.0002188,5]
[389949241,1759903840076,-166.0,0.00021882,2]
[389949242,1759903840085,-330.54059359,0.00021882,2]
[389949243,1759903840094,-1000.0,0.000219,5]
[389949244,1759903840103,-250.0,0.000219,10]
[389949245,1759903840112,-2934.0,0.00021905,2]
[389949246,1759903840121,-3000.0,0.00021916,2]
[389949247,1759903840131,-155.0,0.00021916,2]
[389949248,1759903840139,-260.72215359,0.00021917,2]
[389949249,1759903840149,-353.82807255,0.00021917,2]
[389949250,1759903840158,-221.12367114,0.00021917,2]
[389949251,1759903840167,-500.0,0.00021917,2]
[389949252,1759903840176,-500.0,0.00021917,2]
[389949253,1759903840185,-425.92083367,0.00021917,2]
[389949254,1759903840193,-1703.68333469,0.00021917,2]
[389949255,1759903840203,-3833.28750306,0.00021917,2]
[389949256,1759903840212,-6807.91860544,0.00021917,2]
[389949257,1759903840221,-500.0,0.00021917,2]
[389949258,1759903840230,-2957.13,0.00021917,2]
[389949259,1759903840238,-2957.13,0.00021917,2]
[389949260,1759903840247,-2957.13,0.00021917,2]
[389949261,1759903840256,-2957.13,0.00021917,2]
[389949262,1759903840265,-2957.13,0.00021917,2]
[389949263,1759903840274,-2957.13,0.00021917,2]
[389949264,1759903840283,-2957.13,0.00021917,2]
[389949265,1759903840292,-2957.13,0.00021917,2]
[389949266,1759903840302,-2957.13,0.00021917,2]
[389949267,1759903840312,-2957.13,0.00021917,2]
[389949268,1759903840321,-2957.13,0.00021917,2]
[389949269,1759903840330,-2957.13,0.00021917,2]
[389949270,1759903840339,-2957.13,0.00021917,2]
[389949271,1759903840347,-2957.13,0.00021917,2]
[389949272,1759903840356,-2957.13,0.00021917,2]
[389949273,1759903840365,-2957.13,0.00021917,2]
[389949274,1759903840374,-2957.13,0.00021917,2]
[389949275,1759903840383,-2957.13,0.00021917,2]
[389949276,1759903840392,-2957.13,0.00021917,2]
[389949278,1759903840400,-2957.13,0.00021917,2]
[389949280,1759903840409,-2957.13,0.00021917,2]
[389949282,1759903840421,-2957.13,0.00021917,2]
[389949284,1759903840430,-2957.13,0.00021917,2]
[389949286,1759903840438,-2957.25981443,0.00021917,2]
[389949288,1759903840447,-500.0,0.00021917,2]
[389949289,1759903840457,-500.0,0.00021917,2]
[389949291,1759903840466,-304.49621896,0.00021917,2]
[389949292,1759903840475,-500.0,0.00021917,2]
[389949294,1759903840484,-500.0,0.00021917,2]
[389949296,1759903840494,-500.0,0.00021917,2]
[389949298,1759903840503,-500.0,0.00021917,2]
[389949299,1759903840512,-500.0,0.00021917,2]
[389949300,1759903840521,-500.0,0.00021917,2]
[389949301,1759903840530,-500.0,0.00021917,2]
[389949302,1759903840539,-500.0,0.00021917,2]
[389949303,1759903840548,-500.0,0.00021917,2]
[389949304,1759903840557,-500.0,0.00021917,2]
[389949305,1759903840565,-500.0,0.00021917,2]
[389949306,1759903840575,-535.04079775,0.00021917,2]
[389949307,1759903840584,-500.33806792,0.00021917,2]
[389949308,1759903840593,-907.57,0.00021917,2]
[389949309,1759903840602,-907.57,0.00021917,2]
[389949310,1759903840611,-907.57,0.00021917,2]
[389949311,1759903840620,-907.57,0.00021917,2]
[389949312,1759903840630,-907.57,0.00021917,2]
[389949313,1759903840639,-907.57,0.00021917,2]
[389949314,1759903840648,-907.57,0.00021917,2]
[389949315,1759903840658,-907.57,0.00021917,2]
[389949316,1759903840667,-907.57,0.00021917,2]
[389949317,1759903840676,-907.57,0.00021917,2]